fUSD/lending_fUSD_20240612
["ID","MTS","AMOUNT","RATE_DAILY","PERIOD"]
[329272119,1718208646664,-989.25,0.00020272,2]
[329272121,1718208646679,-500.0,0.00020272,2]
[329272122,1718208646702,-500.0,0.00020272,2]
[329272124,1718208646730,-500.0,0.00020272,2]
[329272126,1718208646742,-500.0,0.00020272,2]
[329272128,1718208646762,-500.0,0.00020272,2]
[329272130,1718208646773,-500.0,0.00020272,2]
[329272131,1718208646799,-500.0,0.00020272,2]
[329272133,1718208646811,-500.0,0.00020272,2]
[329272135,1718208646822,-500.0,0.00020273,2]
[329272137,1718208646838,-500.0,0.00020273,2]
[329272139,1718208646865,-500.0,0.00020273,2]
[329272141,1718208646877,-500.0,0.00020273,2]
[329272142,1718208646888,-500.0,0.00020273,2]
[329272144,1718208646900,-560.85,0.00020273,2]
[329272146,1718208646923,-311.46111819,0.00020273,2]
[329272157,1718208647087,-188.53888181,0.00020273,2]
[329272159,1718208647107,-500.0,0.00020273,2]
[329272160,1718208647119,-500.0,0.00020273,2]
[329272162,1718208647131,-500.0,0.00020273,2]
[329272164,1718208647145,-728.97,0.00020273,2]
[329272166,1718208647162,-500.0,0.00020273,2]
[329272168,1718208647188,-500.0,0.00020273,2]
[329272169,1718208647201,-500.0,0.00020273,2]
[329272171,1718208647214,-500.0,0.00020273,2]
[329272173,1718208647225,-500.0,0.00020273,2]
[329272174,1718208647238,-500.0,0.00020273,2]
[329272176,1718208647248,-670.64,0.00020273,2]
[329272178,1718208647259,-1061.38,0.00020273,2]
[329272180,1718208647274,-500.0,0.00020273,2]
[329272182,1718208647288,-500.0,0.00020273,2]
[329272184,1718208647303,-617.98,0.00020273,2]
[329272186,1718208647314,-175.20791801,0.00020309,2]
[329272188,1718208647325,-500.0,0.00020408,2]
[329272189,1718208647346,-500.0,0.00020408,2]
[329272191,1718208647369,-500.0,0.00020408,2]
[329272193,1718208647380,-500.0,0.00020408,2]
[329272195,1718208647392,-500.0,0.00020408,2]
[329272197,1718208647407,-500.0,0.00020408,2]
[329272199,1718208647432,-500.0,0.00020408,2]
[329272201,1718208647449,-500.0,0.00020408,2]
[329272203,1718208647465,-500.0,0.00020408,2]
[329272205,1718208647480,-500.0,0.00020408,2]
[329272208,1718208647528,-638.78,0.00020408,2]
[329272210,1718208647550,-500.0,0.00020408,2]
[329272212,1718208647569,-500.0,0.00020408,2]
[329272213,1718208647600,-500.0,0.00020408,2]
[329272214,1718208647611,-1164.27,0.00020409,2]
[329272215,1718208647621,-500.0,0.00020409,2]
[329272216,1718208647634,-500.0,0.00020409,2]
[329272217,1718208647646,-678.08,0.00020409,2]
[329272218,1718208647661,-500.0,0.00020409,2]
[329272219,1718208647678,-500.0,0.00020409,2]
[329272220,1718208647693,-500.0,0.00020409,2]
[329272221,1718208647704,-500.0,0.00020409,2]
[329272222,1718208647732,-500.0,0.00020409,2]
[329272223,1718208647746,-500.0,0.00020409,2]
[329272225,1718208647765,-963.42,0.00020409,2]
[329272227,1718208647780,-546.31,0.00020409,2]
[329272230,1718208647801,-989.25,0.00020409,2]
[329272232,1718208647813,-500.0,0.00020409,2]
[329272233,1718208647827,-500.0,0.00020409,2]
[329272235,1718208647852,-500.0,0.00020409,2]
[329272237,1718208647864,-46.5002024,0.00020409,2]
[329272240,1718208647919,-250.48725582,0.00020409,2]
[329272242,1718208647938,-203.01254178,0.00020409,2]
[329272245,1718208647953,-215.52753495,0.00020409,2]
[329272247,1718208647968,-377.42246505,0.00020409,2]
[329272250,1718208647980,-176.52579902,0.00020409,2]
[329272254,1718208648001,-323.47420098,0.00020409,2]
[329272256,1718208648018,-500.0,0.00020409,2]
[329272258,1718208648042,-500.0,0.00020409,2]
[329272260,1718208648054,-500.0,0.0002041,2]
[329272261,1718208648076,-500.0,0.0002041,2]
[329272263,1718208648088,-577.32,0.0002041,2]
[329272265,1718208648114,-500.0,0.0002041,2]
[329272267,1718208648135,-201.64837395,0.0002041,2]
[329272270,1718208648160,-298.35162605,0.0002041,2]
[329272272,1718208648192,-560.85,0.0002041,2]
[329272274,1718208648223,-500.0,0.0002041,2]
[329272277,1718208648244,-500.0,0.0002041,2]
[329272278,1718208648263,-500.0,0.0002041,2]
[329272280,1718208648279,-500.0,0.0002041,2]
[329272282,1718208648307,-728.97,0.0002041,2]
[329272285,1718208648349,-500.0,0.0002041,2]
[329272287,1718208648367,-500.0,0.0002041,2]
[329272288,1718208648378,-500.0,0.0002041,2]
[329272291,1718208648394,-500.0,0.0002041,2]
[329272293,1718208648413,-500.0,0.0002041,2]
[329272295,1718208648431,-500.0,0.0002041,2]
[329272297,1718208648453,-670.64,0.0002041,2]
[329272299,1718208648465,-1061.38,0.0002041,2]
[329272300,1718208648476,-249.41,0.0002041,2]
[329272301,1718208648496,-500.0,0.0002041,2]
[329272304,1718208648508,-617.98,0.0002041,2]
[329272306,1718208648528,-3736.383,0.0002042,2]
[329272307,1718208648556,-456.23,0.00020498,2]
[329272309,1718208648567,-500.0,0.00020545,2]
[329272311,1718208648595,-500.0,0.00020545,2]
[329272313,1718208648615,-500.0,0.00020545,2]
[329272315,1718208648650,-428.2742096,0.00020545,2]
[329272317,1718208648670,-71.7257904,0.00020545,2]
[329272319,1718208648689,-400.3142096,0.00020545,2]
[329272322,1718208648741,-99.6857904,0.00020545,2]
[329272323,1718208648752,-500.0,0.00020545,2]
[329272326,1718208648772,-500.0,0.00020545,2]
[329272328,1718208648799,-500.0,0.00020545,2]
[329272329,1718208648821,-500.0,0.00020545,2]
[329272331,1718208648835,-500.0,0.00020545,2]
[329272333,1718208648846,-500.0,0.00020545,2]
[329272334,1718208648867,-500.0,0.00020545,2]
[329272336,1718208648879,-500.0,0.00020545,2]
[329272338,1718208648893,-1164.27,0.00020546,2]
[329272340,1718208648904,-500.0,0.00020546,2]
[329272342,1718208648929,-500.0,0.00020546,2]
[329272344,1718208648940,-678.08,0.00020546,2]
[329272346,1718208648962,-500.0,0.00020546,2]
[329272348,1718208648972,-500.0,0.00020546,2]
[329272350,1718208648983,-500.0,0.00020546,2]
[329272352,1718208648994,-500.0,0.00020546,2]
[329272354,1718208649006,-500.0,0.00020546,2]
[329272356,1718208649016,-500.0,0.00020546,2]
[329272358,1718208649027,-963.42,0.00020546,2]
[329272360,1718208649041,-105.61535543,0.00020546,2]
[329272362,1718208649055,-418.9295176,0.00020546,2]
[329272365,1718208649068,-21.76512697,0.00020546,2]
[329272367,1718208649084,-989.25,0.00020546,2]
[329272369,1718208649111,-500.0,0.00020546,2]
[329272371,1718208649126,-500.0,0.00020546,2]
[329272373,1718208649148,-500.0,0.00020546,2]
[329272375,1718208649170,-336.03,0.00020546,2]
[329272377,1718208649185,-500.0,0.00020546,2]
[329272379,1718208649199,-139.20487303,0.00020546,2]
[329272382,1718208649225,-360.79512697,0.00020546,2]
[329272384,1718208649250,-450.26156916,0.00020546,2]
[329272387,1718208649274,-49.73843084,0.00020546,2]
[329272389,1718208649286,-248.94,0.00020547,2]
[329272391,1718208649298,-20.83920096,0.00020547,2]
[329272408,1718208649497,-323.84691687,0.00019178,2]
[329272410,1718208649508,-2289.8435,0.00019351,2]
[329272412,1718208649522,-479.16079904,0.00020547,2]
[329272413,1718208649533,-500.0,0.00020547,2]
[329272416,1718208649557,-500.0,0.00020547,2]
[329272418,1718208649568,-287.69120558,0.00020547,2]
[329272420,1718208649592,-273.15879442,0.00020547,2]
[329272422,1718208649607,-120.98696143,0.00020547,2]
[329272425,1718208649640,-379.01303857,0.00020547,2]
[329272427,1718208649653,-244.42896004,0.00020547,2]
[329272431,1718208649703,-255.57103996,0.00020547,2]
[329272433,1718208649733,-175.38,0.00020547,2]
[329272435,1718208649745,-500.0,0.00020547,2]
[329272437,1718208649755,-361.09417378,0.00020547,2]
[329272439,1718208649770,-367.87582622,0.00020547,2]
[329272441,1718208649783,-500.0,0.00020547,2]
[329272443,1718208649800,-500.0,0.00020547,2]
[329272445,1718208649813,-122.56068265,0.00020547,2]
[329272447,1718208649826,-377.43931735,0.00020547,2]
[329272449,1718208649846,-500.0,0.00020547,2]
[329272451,1718208649858,-472.93,0.00020547,2]
[329272453,1718208649870,-500.0,0.00020547,2]
[329272455,1718208649881,-135.22325365,0.00020547,2]
[329272458,1718208649894,-535.41674635,0.00020547,2]
[329272460,1718208649907,-1061.38,0.00020547,2]
[329272462,1718208649919,-52.15457365,0.00020547,2]
[329272464,1718208649933,-437.52542635,0.00020547,2]
[329272466,1718208649949,-617.98,0.00020547,2]
[329272468,1718208649964,-288.82,0.00020564,2]
[329272470,1718208649975,-500.0,0.00020682,2]
[329272472,1718208649988,-18.08637294,0.00020682,2]
[329272473,1718208650002,-584.30362706,0.00020682,2]
[329272475,1718208650029,-26.71121201,0.00020682,2]
[329272478,1718208650070,-473.28878799,0.00020682,2]
[329272480,1718208650107,-207.62141201,0.00020682,2]
[329272483,1718208650141,-292.37858799,0.00020682,2]
[329272487,1718208650189,-500.0,0.00020682,2]
[329272490,1718208650243,-402.46732635,0.00020682,2]
[329272492,1718208650273,-500.0,0.00020682,2]
[329272494,1718208650287,-500.0,0.00020682,2]
[329272495,1718208650308,-500.0,0.00020682,2]
[329272497,1718208650321,-351.67,0.00020682,2]
[329272499,1718208650348,-500.0,0.00020682,2]
[329272501,1718208650369,-500.0,0.00020682,2]
[329272503,1718208650400,-500.0,0.00020682,2]
[329272505,1718208650415,-1164.27,0.00020683,2]
[329272507,1718208650427,-500.0,0.00020683,2]
[329272509,1718208650439,-500.0,0.00020683,2]
[329272510,1718208650457,-678.08,0.00020683,2]
[329272512,1718208650468,-500.0,0.00020683,2]
[329272514,1718208650485,-500.0,0.00020683,2]
[329272516,1718208650496,-500.0,0.00020683,2]
[329272517,1718208650510,-500.0,0.00020683,2]
[329272519,1718208650522,-500.0,0.00020683,2]
[329272520,1718208650533,-500.0,0.00020683,2]
[329272523,1718208650553,-963.42,0.00020683,2]
[329272526,1718208650586,-546.31,0.00020683,2]
[329272529,1718208650619,-989.25,0.00020683,2]
[329272531,1718208650638,-500.0,0.00020683,2]
[329272533,1718208650657,-500.0,0.00020683,2]
[329272535,1718208650676,-500.0,0.00020683,2]
[329272537,1718208650702,-500.0,0.00020683,2]
[329272539,1718208650743,-500.0,0.00020683,2]
[329272541,1718208650778,-500.0,0.00020683,2]
[329272542,1718208650797,-500.0,0.00020684,2]
[329272544,1718208650814,-500.0,0.00020684,2]
[329272546,1718208650827,-500.0,0.00020684,2]
[329272548,1718208650841,-560.85,0.00020684,2]
[329272550,1718208650853,-500.0,0.00020684,2]
[329272552,1718208650882,-500.0,0.00020684,2]
[329272555,1718208650911,-500.0,0.00020684,2]
[329272558,1718208650944,-728.97,0.00020684,2]
[329272560,1718208650961,-500.0,0.00020684,2]
[329272563,1718208650982,-500.0,0.00020684,2]
[329272566,1718208651001,-500.0,0.00020684,2]
[329272569,1718208651016,-500.0,0.00020684,2]
[329272571,1718208651030,-500.0,0.00020684,2]
[329272573,1718208651046,-670.64,0.00020684,2]
[329272576,1718208651062,-1061.38,0.00020684,2]
[329272577,1718208651075,-617.98,0.00020684,2]
[329272579,1718208651089,-151.60110166,0.00020765,2]
[329272582,1718208651110,-413.39889834,0.00020765,2]
[329272584,1718208651123,-500.0,0.00020819,2]
[329272585,1718208651134,-500.0,0.00020819,2]
[329272587,1718208651147,-500.0,0.00020819,2]
[329272588,1718208651160,-613.73267365,0.00020819,2]
[329272591,1718208651175,-583.78,0.00020819,2]
[329272593,1718208651195,-24.19183049,0.00020819,2]
[329272595,1718208651209,-475.80816951,0.00020819,2]
[329272598,1718208651222,-500.0,0.00020819,2]
[329272600,1718208651240,-500.0,0.00020819,2]
[329272602,1718208651252,-436.30186851,0.00020819,2]
[329272604,1718208651267,-63.69813149,0.00020819,2]
[329272606,1718208651292,-500.0,0.00020819,2]
[329272607,1718208651308,-1164.27,0.0002082,2]
[329272609,1718208651322,-500.0,0.0002082,2]
[329272610,1718208651333,-500.0,0.0002082,2]
[329272612,1718208651346,-678.08,0.0002082,2]
[329272614,1718208651360,-113.50186851,0.0002082,2]
[329272617,1718208651377,-386.49813149,0.0002082,2]
[329272619,1718208651389,-500.0,0.0002082,2]
[329272621,1718208651402,-251.97186851,0.0002082,2]
[329272623,1718208651429,-248.02813149,0.0002082,2]
[329272625,1718208651440,-500.0,0.0002082,2]
[329272627,1718208651450,-500.0,0.0002082,2]
[329272629,1718208651462,-500.0,0.0002082,2]
[329272631,1718208651473,-963.42,0.0002082,2]
[329272633,1718208651484,-546.31,0.0002082,2]
[329272634,1718208651507,-989.25,0.0002082,2]
[329272636,1718208651529,-500.0,0.0002082,2]
[329272638,1718208651547,-500.0,0.0002082,2]
[329272640,1718208651559,-500.0,0.0002082,2]
[329272642,1718208651570,-500.0,0.0002082,2]
[329272644,1718208651581,-500.0,0.0002082,2]
[329272646,1718208651594,-246.58,0.0002082,2]
[329272648,1718208651604,-500.0,0.00020821,2]
[329272650,1718208651618,-500.0,0.00020821,2]
[329272652,1718208651634,-500.0,0.00020821,2]
[329272654,1718208651646,-560.85,0.00020821,2]
[329272656,1718208651658,-500.0,0.00020821,2]
[329272658,1718208651670,-500.0,0.00020821,2]
[329272660,1718208651682,-500.0,0.00020821,2]
[329272663,1718208651696,-728.97,0.00020821,2]
[329272665,1718208651708,-500.0,0.00020821,2]
[329272667,1718208651745,-500.0,0.00020821,2]
[329272669,1718208651771,-500.0,0.00020821,2]
[329272671,1718208651784,-500.0,0.00020821,2]
[329272673,1718208651812,-500.0,0.00020821,2]
[329272675,1718208651823,-670.64,0.00020821,2]
[329272677,1718208651833,-1061.38,0.00020821,2]
[329272679,1718208651844,-617.98,0.00020821,2]
[329272681,1718208651855,-363.55789533,0.0002085,2]
[329272683,1718208651866,-264.199444,0.00020928,2]
[329272685,1718208651878,-513.820208,0.00020928,2]
[329272687,1718208651888,-190.461819,0.00020928,2]
[329272689,1718208651898,-170.384923,0.00020928,2]
[329272691,1718208651908,-1306.277919,0.00020928,2]
[329272692,1718208651921,-264.199444,0.00020928,2]
[329272694,1718208651931,-513.820208,0.00020928,2]
[329272696,1718208651942,-200.005923,0.00020928,2]
[329272698,1718208651954,-150.004442,0.00020928,2]
[329272700,1718208651966,-500.0,0.00020956,2]
[329272702,1718208651978,-500.0,0.00020956,2]
[329272704,1718208651989,-632.84,0.00020956,2]
[329272706,1718208652001,-500.0,0.00020956,2]
[329272708,1718208652012,-500.0,0.00020956,2]
[329272710,1718208652023,-500.0,0.00020956,2]
[329272713,1718208652034,-500.0,0.00020956,2]
[329272715,1718208652048,-226.06,0.00020956,2]
[329272717,1718208652059,-1980.83866895,0.00020957,2]
[329272719,1718208652069,-1164.27,0.00020957,2]
[329272721,1718208652083,-500.0,0.00020957,2]
[329272723,1718208652094,-500.0,0.00020957,2]
[329272725,1718208652108,-678.08,0.00020957,2]
[329272727,1718208652119,-500.0,0.00020957,2]
[329272729,1718208652129,-500.0,0.00020957,2]
[329272731,1718208652140,-500.0,0.00020957,2]
[329272733,1718208652150,-500.0,0.00020957,2]
[329272734,1718208652161,-500.0,0.00020957,2]
[329272736,1718208652172,-500.0,0.00020957,2]
[329272738,1718208652182,-963.42,0.00020957,2]
[329272740,1718208652193,-546.31,0.00020957,2]
[329272742,1718208652203,-989.25,0.00020957,2]
[329272744,1718208652213,-500.0,0.00020957,2]
[329272746,1718208652224,-500.0,0.00020957,2]
[329272748,1718208652235,-500.0,0.00020957,2]
[329272750,1718208652246,-500.0,0.00020957,2]
[329272753,1718208652257,-500.0,0.00020957,2]
[329272755,1718208652267,-500.0,0.00020958,2]
[329272757,1718208652277,-500.0,0.00020958,2]
[329272758,1718208652288,-500.0,0.00020958,2]
[329272761,1718208652301,-560.85,0.00020958,2]
[329272762,1718208652326,-500.0,0.00020958,2]
[329272764,1718208652344,-500.0,0.00020958,2]
[329272765,1718208652364,-500.0,0.00020958,2]
[329272766,1718208652378,-728.97,0.00020958,2]
[329272769,1718208652401,-500.0,0.00020958,2]
[329272771,1718208652415,-500.0,0.00020958,2]
[329272774,1718208652437,-212.4,0.00020958,2]
[329272776,1718208652453,-500.0,0.00020958,2]
[329272778,1718208652470,-500.0,0.00020958,2]
[329272780,1718208652482,-670.64,0.00020958,2]
[329272782,1718208652493,-1061.38,0.00020958,2]
[329272784,1718208652506,-617.98,0.00020958,2]
[329272786,1718208652518,-5000.0,0.00021,2]
[329272788,1718208652530,-1250.0,0.00021,2]
[329272790,1718208652543,-500.0,0.00021093,2]
[329272794,1718208652567,-500.0,0.00021093,2]
[329272796,1718208652583,-500.0,0.00021093,2]
[329272798,1718208652601,-500.0,0.00021093,2]
[329272800,1718208652625,-500.0,0.00021093,2]
[329272802,1718208652642,-500.0,0.00021093,2]
[329272804,1718208652653,-1164.27,0.00021094,2]
[329272806,1718208652671,-500.0,0.00021094,2]
[329272807,1718208652682,-557.24,0.00021094,2]
[329272809,1718208652707,-678.08,0.00021094,2]
[329272811,1718208652736,-500.0,0.00021094,2]
[329272812,1718208652759,-500.0,0.00021094,2]
[329272814,1718208652775,-500.0,0.00021094,2]
[329272815,1718208652798,-477.72,0.00021094,2]
[329272816,1718208652810,-500.0,0.00021094,2]
[329272817,1718208652821,-500.0,0.00021094,2]
[329272818,1718208652832,-963.42,0.00021094,2]
[329272819,1718208652844,-546.31,0.00021094,2]
[329272820,1718208652854,-989.25,0.00021094,2]
[329272821,1718208652864,-500.0,0.00021094,2]
[329272822,1718208652875,-500.0,0.00021094,2]
[329272823,1718208652887,-500.0,0.00021094,2]
[329272825,1718208652903,-500.0,0.00021094,2]
[329272828,1718208652924,-500.0,0.00021094,2]
[329272830,1718208652937,-482.57891265,0.00021095,2]
[329272832,1718208652952,-500.0,0.00021095,2]
[329272834,1718208652965,-569.87,0.00021095,2]
[329272836,1718208653003,-560.85,0.00021095,2]
[329272839,1718208653039,-500.0,0.00021095,2]
[329272841,1718208653060,-500.0,0.00021095,2]
[329272843,1718208653088,-500.0,0.00021095,2]
[329272845,1718208653111,-728.97,0.00021095,2]
[329272847,1718208653125,-500.0,0.00021095,2]
[329272849,1718208653138,-500.0,0.00021095,2]
[329272851,1718208653152,-500.0,0.00021095,2]
[329272853,1718208653166,-500.0,0.00021095,2]
[329272855,1718208653180,-670.64,0.00021095,2]
[329272857,1718208653191,-1061.38,0.00021095,2]
[329272859,1718208653209,-617.98,0.00021095,2]
[329272861,1718208653232,-264.199444,0.00021189,2]
[329272863,1718208653259,-513.820208,0.00021189,2]
[329272864,1718208653271,-1306.277919,0.00021189,2]
[329272866,1718208653281,-264.199444,0.00021189,2]
[329272868,1718208653294,-513.820208,0.00021189,2]
[329272870,1718208653307,-1345.35279,0.0002119,2]
[329272871,1718208653319,-2058.05239766,0.000212,2]
[329272873,1718208653331,-500.0,0.0002123,2]
[329272875,1718208653346,-500.0,0.0002123,2]
[329272877,1718208653359,-500.0,0.0002123,2]
[329272879,1718208653377,-500.0,0.0002123,2]
[329272881,1718208653390,-500.0,0.0002123,2]
[329272883,1718208653408,-500.0,0.0002123,2]
[329272886,1718208653433,-1164.27,0.00021231,2]
[329272888,1718208653448,-500.0,0.00021231,2]
[329272890,1718208653470,-678.08,0.00021231,2]
[329272892,1718208653483,-500.0,0.00021231,2]
[329272893,1718208653500,-500.0,0.00021231,2]
[329272894,1718208653512,-500.0,0.00021231,2]
[329272895,1718208653531,-500.0,0.00021231,2]
[329272896,1718208653552,-500.0,0.00021231,2]
[329272897,1718208653574,-963.42,0.00021231,2]
[329272898,1718208653603,-546.31,0.00021231,2]
[329272900,1718208653653,-989.25,0.00021231,2]
[329272901,1718208653747,-500.0,0.00021231,2]
[329272902,1718208653770,-500.0,0.00021231,2]
[329272903,1718208653787,-246.28,0.00021231,2]
[329272904,1718208653801,-500.0,0.00021231,2]
[329272905,1718208653814,-500.0,0.00021231,2]
[329272906,1718208653826,-500.0,0.00021232,2]
[329272907,1718208653837,-560.85,0.00021232,2]
[329272908,1718208653851,-500.0,0.00021232,2]
[329272909,1718208653892,-500.0,0.00021232,2]
[329272910,1718208653903,-500.0,0.00021232,2]
[329272911,1718208653924,-728.97,0.00021232,2]
[329272912,1718208653940,-500.0,0.00021232,2]
[329272915,1718208653967,-500.0,0.00021232,2]
[329272917,1718208653988,-500.0,0.00021232,2]
[329272919,1718208654003,-500.0,0.00021232,2]
[329272922,1718208654029,-670.64,0.00021232,2]
[329272924,1718208654042,-1061.38,0.00021232,2]
[329272926,1718208654060,-617.98,0.00021232,2]
[329272928,1718208654078,-150.004442,0.00021276,2]
[329272930,1718208654091,-500.0,0.00021367,2]
[329272932,1718208654103,-500.0,0.00021367,2]
[329272934,1718208654120,-500.0,0.00021367,2]
[329272936,1718208654140,-500.0,0.00021367,2]
[329272938,1718208654152,-500.0,0.00021367,2]
[329272939,1718208654175,-500.0,0.00021367,2]
[329272940,1718208654193,-1164.27,0.00021368,2]
[329272941,1718208654235,-500.0,0.00021368,2]
[329272942,1718208654260,-678.08,0.00021368,2]
[329272943,1718208654280,-500.0,0.00021368,2]
[329272944,1718208654295,-500.0,0.00021368,2]
[329272945,1718208654312,-500.0,0.00021368,2]
[329272946,1718208654328,-447.8,0.00021368,2]
[329272947,1718208654353,-500.0,0.00021368,2]
[329272948,1718208654367,-963.42,0.00021368,2]
[329272949,1718208654379,-546.31,0.00021368,2]
[329272950,1718208654394,-989.25,0.00021368,2]
[329272951,1718208654406,-606.31,0.00021368,2]
[329272952,1718208654420,-500.0,0.00021368,2]
[329272953,1718208654436,-571.51,0.00021368,2]
[329272955,1718208654448,-500.0,0.00021368,2]
[329272957,1718208654459,-500.0,0.00021369,2]
[329272959,1718208654477,-560.85,0.00021369,2]
[329272961,1718208654489,-500.0,0.00021369,2]
[329272962,1718208654503,-500.0,0.00021369,2]
[329272964,1718208654523,-500.0,0.00021369,2]
[329272966,1718208654592,-728.97,0.00021369,2]
[329272968,1718208654608,-500.0,0.00021369,2]
[329272970,1718208654637,-500.0,0.00021369,2]
[329272973,1718208654662,-500.0,0.00021369,2]
[329272975,1718208654684,-558.71,0.00021369,2]
[329272978,1718208654756,-670.64,0.00021369,2]
[329272979,1718208654772,-1061.38,0.00021369,2]
[329272982,1718208654805,-617.98,0.00021369,2]
[329272984,1718208654820,-1345.3528,0.000214,2]
[329272985,1718208654840,-823.0,0.0002142,2]
[329272987,1718208654867,-513.820208,0.00021451,2]
[329272990,1718208654885,-264.199444,0.00021451,2]
[329272992,1718208654901,-1306.277919,0.00021451,2]
[329272993,1718208654914,-264.199444,0.00021451,2]
[329272995,1718208654934,-513.820208,0.00021451,2]
[329272997,1718208654954,-500.0,0.00021504,2]
[329272999,1718208654968,-500.0,0.00021504,2]
[329273001,1718208654986,-500.0,0.00021504,2]
[329273003,1718208654997,-500.0,0.00021504,2]
[329273005,1718208655010,-500.0,0.00021504,2]
[329273006,1718208655035,-500.0,0.00021504,2]
[329273007,1718208655065,-1164.27,0.00021505,2]
[329273008,1718208655088,-500.0,0.00021505,2]
[329273009,1718208655101,-678.08,0.00021505,2]
[329273010,1718208655116,-500.0,0.00021505,2]
[329273011,1718208655147,-500.0,0.00021505,2]
[329273012,1718208655166,-500.0,0.00021505,2]
[329273013,1718208655183,-500.0,0.00021505,2]
[329273014,1718208655216,-963.42,0.00021505,2]
[329273015,1718208655229,-546.31,0.00021505,2]
[329273016,1718208655244,-989.25,0.00021505,2]
[329273017,1718208655259,-500.0,0.00021505,2]
[329273018,1718208655271,-500.0,0.00021505,2]
[329273019,1718208655294,-490.64,0.00021506,2]
[329273020,1718208655311,-560.85,0.00021506,2]
[329273021,1718208655325,-500.0,0.00021506,2]
[329273022,1718208655360,-500.0,0.00021506,2]
[329273023,1718208655391,-500.0,0.00021506,2]
[329273024,1718208655402,-728.97,0.00021506,2]
[329273025,1718208655421,-500.0,0.00021506,2]
[329273026,1718208655440,-500.0,0.00021506,2]
[329273027,1718208655468,-401.36,0.00021506,2]
[329273028,1718208655480,-670.64,0.00021506,2]
[329273029,1718208655498,-1061.38,0.00021506,2]
[329273030,1718208655511,-617.98,0.00021506,2]
[329273031,1718208655528,-60.24010252,0.00021612,2]
[329273032,1718208655606,-131.89550525,0.00021612,2]
[329273033,1718208655620,-150.004442,0.00021625,2]
[329273034,1718208655634,-39.99005275,0.00021641,2]
[329273038,1718208655683,-460.00994725,0.00021641,2]
[329273041,1718208655703,-500.0,0.00021641,2]
[329273043,1718208655742,-500.0,0.00021641,2]
[329273045,1718208655754,-287.05199457,0.00021641,2]
[329273046,1718208655773,-212.94800543,0.00021641,2]
[329273048,1718208655788,-500.0,0.00021641,2]
[329273049,1718208655806,-500.0,0.00021641,2]
[329273052,1718208655836,-1164.27,0.00021642,2]
[329273054,1718208655855,-500.0,0.00021642,2]
[329273056,1718208655873,-678.08,0.00021642,2]
[329273058,1718208655885,-500.0,0.00021642,2]
[329273060,1718208655901,-500.0,0.00021642,2]
[329273062,1718208655917,-496.81,0.00021642,2]
[329273064,1718208655930,-500.0,0.00021642,2]
[329273066,1718208655942,-963.42,0.00021642,2]
[329273068,1718208655954,-546.31,0.00021642,2]
[329273071,1718208655966,-989.25,0.00021642,2]
[329273072,1718208655978,-538.88,0.00021642,2]
[329273073,1718208655990,-500.0,0.00021642,2]